Cogmind - Beta 15 *** ADVENTURER MODE // 2025.05.24 @ 16:22:28 Player: Vidali Result: Destroyed by S-27 Virus with Autogun Performance ------------- Evolutions (5) 2500 Regions Visited (8) 1600 Robots Destroyed (51) 255 Value Destroyed (1697) 1697 Prototype IDs (30) 600 Alien Tech Used (0) 0 Bonus (969) 969 TOTAL SCORE: 7621 Bonus ------- Follower Combat Kills 169 Registered with UFD 300 Met Optimus in HQ 500 Cogmind --------- Core Integrity 0/1000 Matter 300/300 Energy 65/100 System Corruption 0% Temperature Cool (9) Movement Core (750) Ox14 Location -5/Factory Parts ------- > --- POWER (2) -------- (None) > --- PROPULSION (5) --- (None) > --- UTILITY (8) ------ High-capacity Storage Unit Advanced Signal Interpreter Advanced Terrain Scan Processor > --- WEAPON (2) ------- Companion Sword > --- INVENTORY (20) --- Armored Leg Armored Leg Cooled Nuclear Pulse Thruster Cooled Nuclear Pulse Thruster Cooled Nuclear Pulse Thruster Faulty Cooled Nuclear Pulse Thruster Cooled Nuclear Pulse Thruster Impulse Thruster Array Advanced Heat Sink Small Storage Unit Improved Melee Analysis Suite Stasis Canceller Transmission Jammer Cloaking Device Improved Medium Armor Plating Layered Medium Armor Plating Layered Medium Armor Plating Medium Reflective Plating Improved Component Analysis Suite Peak State ------------ > --- POWER ------------ Light Fission Core Light Fission Core > --- PROPULSION ------- VSS Leg VSS Leg VSS Leg VSS Leg VSS Leg Arachnoskeleton > --- UTILITY ---------- High-capacity Storage Unit Experimental Sensor Array Advanced Signal Interpreter Improved Terrain Scanner Advanced Terrain Scan Processor Improved Medium Armor Plating Improved Medium Armor Plating System Restoration Module > --- WEAPON ----------- Companion Sword > --- INVENTORY -------- Neutrino Core Armored Leg Armored Leg Cooled Nuclear Pulse Thruster Cooled Nuclear Pulse Thruster Cooled Nuclear Pulse Thruster Cooled Nuclear Pulse Thruster Cooled Nuclear Pulse Thruster Impulse Thruster Array Advanced Heat Sink Small Storage Unit Improved Melee Analysis Suite Stasis Canceller Transmission Jammer Improved Medium Armor Plating Layered Medium Armor Plating Layered Medium Armor Plating Medium Reflective Plating Improved Component Analysis Suite [Rating: 97] Favorites ----------- Power Light Fission Core Engine Ion Engine Power Core Light Fission Core Propulsion VSS Leg Leg VSS Leg Utility Structural Scanner Device Structural Scanner Storage Small Storage Unit Processor Advanced Targeting Computer Hackware System Shield Protection Layered Medium Armor Plating Weapon Makeshift Spear Energy Gun Medium Laser Energy Cannon Beam Cannon Ballistic Gun Battle Rifle Ballistic Cannon Advanced Assault Cannon Slashing Weapon Katana Piercing Weapon Makeshift Spear Build | -11 -10 -10 -8 -8 -6 -5 -5 -5 ------- Run | Yrd Mat Sub Rec Scr Fac Fac Was Fac Slots Evolved 10 | . . . . . 8 2 . . Power 1 | . . . . . . 1 . . Propulsion 3 | . . . . . 2 1 . . Utility 6 | . . . . . 6 . . . Weapon . | . . . . . . . . . Parts Attached 55 | 6 1 10 1 4 18 5 . 10 Power 9 | 1 . 2 . 1 . 1 . 4 Engine 2 | 1 . 1 . . . . . . Core 7 | . . 1 . 1 . 1 . 4 Reactor . | . . . . . . . . . Propulsion 15 | 2 . 3 . 2 7 1 . . Treads . | . . . . . . . . . Leg 15 | 2 . 3 . 2 7 1 . . Wheel . | . . . . . . . . . Hover . | . . . . . . . . . Flight . | . . . . . . . . . Utility 21 | 1 1 1 . 1 9 2 . 6 Device 6 | . 1 . . . 2 2 . 1 Storage 2 | 1 . . . 1 . . . . Processor 5 | . . . . . 2 . . 3 Hackware 2 | . . . . . 2 . . . Protection 6 | . . 1 . . 3 . . 2 Artifact . | . . . . . . . . . Weapon 10 | 2 . 4 1 . 2 1 . . Energy Gun 1 | 1 . . . . . . . . Energy Cannon 1 | . . 1 . . . . . . Ballistic Gun 3 | 1 . 2 . . . . . . Ballistic Cannon 2 | . . . . . 2 . . . Launcher . | . . . . . . . . . Special Weapon . | . . . . . . . . . Impact Weapon . | . . . . . . . . . Slashing Weapon 2 | . . . 1 . . 1 . . Piercing Weapon 1 | . . 1 . . . . . . Special Melee Weapon . | . . . . . . . . . Unidentified Prototypes 1 | . . . . . . 1 . . Parts Lost 19 | . . 4 1 . . . . 14 Power 5 | . . 1 . . . . . 4 Propulsion 9 | . . 3 1 . . . . 5 Utility 5 | . . . . . . . . 5 Weapon . | . . . . . . . . . Highest Loss Streak 12 | . . 2 1 . . . . 12 To Critical Strikes . | . . . . . . . . . Average Backups 10 | 1 5 6 6 12 17 17 17 18 Power . | . 1 . . . . . . . Propulsion 2 | . 1 1 1 1 1 4 7 8 Utility 5 | . 1 2 3 5 8 8 9 9 Weapon 3 | . 1 1 2 5 6 5 1 . Tool/Special . | . . . . . . . . . Unused Backups 30 | . 1 5 . 1 3 4 . 16 Power 1 | . . 1 . . . . . . Propulsion 9 | . 1 1 . . . 1 . 6 Utility 11 | . . 1 . . 1 . . 9 Weapon 9 | . . 2 . 1 2 3 . 1 Tool/Special . | . . . . . . . . . Average Slot Usage (%) 91 | . 88 99 81 97 84 83 85 81 Engine 3 | . 14 7 7 . . . . . Core 7 | . . 6 . 12 5 10 10 9 Leg 25 | . 28 27 17 26 21 29 30 28 Device 12 | . 3 13 9 14 6 16 20 18 Storage 11 | . 14 14 14 14 5 5 5 5 Processor 2 | . . . . . 11 2 . 4 Protection 4 | . . . 4 . 12 15 15 10 Energy Gun 2 | . 14 6 . . . . . . Energy Cannon 1 | . . 5 . . . . . . Ballistic Gun 3 | . 14 7 2 . . . . . Ballistic Cannon 1 | . . . . . 9 . . . Slashing Weapon 6 | . . . 11 14 1 4 5 5 Piercing Weapon 8 | . . 8 14 14 1 . . . Peak Build Rating 97 | 6 7 22 22 33 82 92 94 97 Average Rating 34 | 4 6 13 15 28 59 89 93 90 On Entrance 38 | . 6 7 21 13 33 80 92 94 Naked Turns . | . . . . . . . . . Heaviest Build 87 | 14 15 18 18 52 87 85 85 85 Greatest Support 98 | 20 20 40 30 32 98 86 86 86 Greatest Overweight (x) 2 | 2 . 1 1 1 1 . . 1 Average Overweight (x) . | . . . . . . . . . Largest Inventory Capacity 20 | 8 8 8 8 20 20 20 20 20 Average Capacity 13 | 6 8 8 8 17 20 20 20 20 Most Carried 20 | 4 8 8 8 20 20 19 19 20 Average Carried 12 | 1 5 7 8 14 19 17 18 19 Final Capacity 20 | 8 8 8 8 20 20 20 20 20 Final Carried 20 | 2 8 8 8 20 19 17 19 20 Class Distribution -------------------- 46% | Commander-Mutant 36% | Mutant 12% | Assassin 3% | Derelict-Mutant Dominant Class ---------------- Mutant | -10/Materials Mutant | -10/Subcaves Commander-Mutant | -8/Recycling Commander-Mutant | -8/Scraptown Commander-Mutant | -6/Factory Assassin | -5/Factory Assassin | -5/Waste Assassin | -5/Factory Resources | -11 -10 -10 -8 -8 -6 -5 -5 -5 ----------- Run | Yrd Mat Sub Rec Scr Fac Fac Was Fac Matter Collected 1225 | 198 83 239 35 40 510 . . 120 Remotely . | . . . . . . . . . Salvage Created 1657 | . 130 590 110 . 214 . . 613 Parts 105 | . 15 39 2 . 17 . . 32 Haulers Intercepted . | . . . . . . . . . Recyclers Shooed . | . . . . . . . . . Parts Field Recycled . | . . . . . . . . . Retrieved Matter . | . . . . . . . . . Parts Self-Destructed 23 | . . 23 . . . . . . Prevented . | . . . . . . . . . Kills | -11 -10 -10 -8 -8 -6 -5 -5 -5 ------- Run | Yrd Mat Sub Rec Scr Fac Fac Was Fac Combat Hostiles Destroyed 49 | . 9 17 2 . 11 . . 10 Melee 19 | . . 7 2 . . . . 10 Guns 17 | . 9 8 . . . . . . Cannons 13 | . . 2 . . 11 . . . Classes Destroyed 9 | . 1 3 . . 4 . . 1 Recycler 1 | . . . . . . . . 1 Operator 1 | . . . . . 1 . . . Swarmer 25 | . 9 5 . . 7 . . 4 Grunt 4 | . . 4 . . . . . . Sentry 5 | . . 1 2 . . . . 2 Hunter 4 | . . . . . 1 . . 3 Programmer 3 | . . . . . 2 . . 1 Behemoth 1 | . . . . . 1 . . . Subdweller 7 | . . 7 . . . . . . Best Kill Streak 6 | . 3 3 1 . 6 . . 4 Combat Bots Only 5 | . 3 3 1 . 5 . . 4 Max Kills in Single Turn 2 | . 1 1 1 . 2 . . 1 Gunslinging . | . . . . . . . . . Exploded . | . . . . . . . . . Melee 1 | . . 1 1 . . . . 1 Uniques/NPCs Destroyed . | . . . . . . . . . Combat | -11 -10 -10 -8 -8 -6 -5 -5 -5 -------- Run | Yrd Mat Sub Rec Scr Fac Fac Was Fac Hostile Shots Fired 520 | . 35 106 14 . 67 . . 298 Missed 167 | . 10 36 2 . 29 . . 90 Hits 353 | . 25 70 12 . 38 . . 208 Projectile 353 | . 25 70 12 . 38 . . 208 AOE 1 | . . . . . . . . 1 Critical Strikes 11 | . . 2 1 . . . . 8 Damage Taken 4813 | . 153 807 138 . 504 . . 3211 Core 1269 | . 40 195 12 . 18 . . 1004 Absorbed by Shields 71 | . . . . . 71 . . . Ignored by Resistances 1342 | . 50 216 39 . 165 . . 872 Core Remaining (%) 66 | 100 . . . 1 97 . . . Volleys Fired 81 | . 17 37 . . 27 . . . Largest 2 | . 2 2 . . 2 . . . Hottest 110 | . 70 110 . . 80 . . . Shots Fired 151 | . 34 62 . . 55 . . . Gun 75 | . 34 41 . . . . . . Cannon 76 | . . 21 . . 55 . . . Launcher . | . . . . . . . . . Special . | . . . . . . . . . Kinetic 95 | . 17 23 . . 55 . . . Thermal 56 | . 17 39 . . . . . . Explosive . | . . . . . . . . . Electromagnetic . | . . . . . . . . . Robot Hit Streak 30 | . 7 22 . . 30 . . . Robot Miss Streak 2 | . 1 1 . . 2 . . . Penetration Max . | . . . . . . . . . Secondary Targets 1 | . . 1 . . . . . . Max Gunslinging Chain 1 | . . 1 . . . . . . Shots Hit Robots 179 | . 21 62 11 . 41 . . 44 Core Hits 64 | . 9 24 2 . 13 . . 16 Critical Kills . | . . . . . . . . . Critical Parts Destroyed . | . . . . . . . . . Critical Strikes 8 | . 1 2 1 . 4 . . . Burn 1 | . 1 . . . . . . . Destroy 1 | . . 1 . . . . . . Blast 4 | . . . . . 4 . . . Sever 1 | . . . 1 . . . . . Impale 1 | . . 1 . . . . . . Melee Attacks 87 | . . 25 12 . . 1 . 49 Impact . | . . . . . . . . . Slashing 59 | . . . 9 . . 1 . 49 Piercing 28 | . . 25 3 . . . . . Sneak Attacks 1 | . . . . . . . . 1 Combat Hostiles . | . . . . . . . . . Follow-up Attacks 3 | . . . 2 . . . . 1 Damage Inflicted 4474 | . 279 1082 333 . 1131 . . 1649 Guns 812 | . 279 533 . . . . . . Cannons 1377 | . . 246 . . 1131 . . . Explosions . | . . . . . . . . . Melee 2285 | . . 303 333 . . . . 1649 Ramming . | . . . . . . . . . Kinetic 1577 | . 129 317 . . 1131 . . . Thermal 612 | . 150 462 . . . . . . Explosive . | . . . . . . . . . Electromagnetic . | . . . . . . . . . Impact . | . . . . . . . . . Slashing 1927 | . . . 278 . . . . 1649 Piercing 358 | . . 303 55 . . . . . Highest Corruption 2 | . . . . . 2 . . 1 Average Corruption 1 | . . . . . 1 . . 1 Corruption Purged 3 | . . . . . 1 . . 2 Corruption Blocked . | . . . . . . . . . Effects 1 | . . . . . 1 . . . Misfires 1 | . . . . . 1 . . . Overload Shots . | . . . . . . . . . Overflow Damage 161 | . . 11 12 . 77 . . 61 Projectiles 77 | . . . . . 77 . . . Explosions . | . . . . . . . . . Melee 84 | . . 11 12 . . . . 61 Knockbacks 3 | . . . . . 3 . . . Impact . | . . . . . . . . . Kinetic 3 | . . . . . 3 . . . Secondary . | . . . . . . . . . Self-Inflicted Damage . | . . . . . . . . . Shots . | . . . . . . . . . Rammed . | . . . . . . . . . Targets Rammed . | . . . . . . . . . Kicked . | . . . . . . . . . Crushed . | . . . . . . . . . Highest Temperature 215 | . 54 23 14 . 215 8 8 23 Average Temperature 33 | . 23 7 7 . 83 5 5 5 Received Heat Transfer 1425 | . . 372 72 . 51 . . 930 Siege Activations . | . . . . . . . . . Martial Activations . | . . . . . . . . . Shielding Activations . | . . . . . . . . . Robots Disrupted 1 | . . . . . . . . 1 Combat Hostiles 1 | . . . . . . . . 1 Robots Corrupted . | . . . . . . . . . Combat Hostiles . | . . . . . . . . . Parts Fried . | . . . . . . . . . Impact Corruptions . | . . . . . . . . . Robots Melted . | . . . . . . . . . Combat Hostiles . | . . . . . . . . . Parts Melted 2 | . 1 1 . . . . . . Heat Transferred 1665 | . 518 1147 . . . . . . Parts Sabotaged . | . . . . . . . . . Parts Stolen . | . . . . . . . . . Parts Stripped . | . . . . . . . . . Power Chain Reactions . | . . . . . . . . . Alert | -11 -10 -10 -8 -8 -6 -5 -5 -5 ------- Run | Yrd Mat Sub Rec Scr Fac Fac Was Fac Maximum Alert Level . | . . . . . . . . . Low Security (%) 100 | 100 100 . 100 . 100 100 100 100 Level 1 . | . . . . . . . . . Level 2 . | . . . . . . . . . Level 3 . | . . . . . . . . . Level 4 . | . . . . . . . . . Level 5 . | . . . . . . . . . High Security . | . . . . . . . . . Max Security . | . . . . . . . . . Peak Influence 115 | . 76 . 49 . 96 . . 115 Initial 49 | . . . 49 . . . . . Average 19 | . 33 . 3 . 20 . . 45 Influence Increases 1295 | . 230 310 97 . 386 . . 272 Destroy 0b10 Robot/C 920 | . 180 200 80 . 260 . . 200 Destroy 0b10 Robot/NC 15 | . . . 5 . 5 . . 5 Destroy Leader 180 | . 30 20 . . 80 . . 50 Allied During Kill 24 | . . . 3 . 21 . . . Successful Hack 28 | . 19 . 9 . . . . . Destroy Structure 8 | . 1 . . . 5 . . 2 Lose Combat Pursuer 120 | . . 90 . . 15 . . 15 Influence Decreases 1295 | . 204 216 217 . 386 . . 272 Entered New Map 86 | . . 15 71 . . . . . Time Decay 1040 | . 204 171 146 . 304 . . 215 Lost Part 87 | . . 30 . . . . . 57 Lost Ally 82 | . . . . . 82 . . . Squads Dispatched 6 | . . . . . 1 2 . 3 Investigation 2 | . . . . . . . . 2 Extermination 3 | . . . . . 1 1 . 1 Reinforcement 1 | . . . . . . 1 . . Assault . | . . . . . . . . . Garrison . | . . . . . . . . . Intercept . | . . . . . . . . . Searches Triggered . | . . . . . . . . . Construction Impeded . | . . . . . . . . . Haulers Reinforced . | . . . . . . . . . Active Scanning Responses . | . . . . . . . . . Cargo Convoy Interrupts . | . . . . . . . . . Stealth | -11 -10 -10 -8 -8 -6 -5 -5 -5 --------- Run | Yrd Mat Sub Rec Scr Fac Fac Was Fac Distress Signals 3 | . 1 . 1 . 1 . . . Communications Jammed . | . . . . . . . . . Distress Signals . | . . . . . . . . . Times Spotted 85 | . 13 21 6 . 14 1 3 27 Peak Tracking Total 12 | . 4 3 3 . 6 1 4 12 Tactical Retreats 4 | . . 2 . . 1 . . 1 Traps | -11 -10 -10 -8 -8 -6 -5 -5 -5 ------- Run | Yrd Mat Sub Rec Scr Fac Fac Was Fac Traps Triggered 3 | . . 1 . . 1 1 . . Indirectly . | . . . . . . . . . Trap Hack Attempts . | . . . . . . . . . Triggered . | . . . . . . . . . Disarmed . | . . . . . . . . . Reprogrammed . | . . . . . . . . . Reused . | . . . . . . . . . Traps Extracted . | . . . . . . . . . Installed . | . . . . . . . . . Triggered . | . . . . . . . . . Machines | -11 -10 -10 -8 -8 -6 -5 -5 -5 ---------- Run | Yrd Mat Sub Rec Scr Fac Fac Was Fac Machines Disabled 1 | . . 1 . . . . . . Max in Single Turn 1 | . . 1 . . . . . . Machines Repaired . | . . . . . . . . . Machines Dismantled . | . . . . . . . . . Machines Sabotaged . | . . . . . . . . . Overloaded Fab Kills . | . . . . . . . . . Hacking | -11 -10 -10 -8 -8 -6 -5 -5 -5 --------- Run | Yrd Mat Sub Rec Scr Fac Fac Was Fac Machines Accessed 23 | . 5 1 7 7 . 1 . 2 Terminals 10 | . 5 . 4 . . 1 . . Fabricators . | . . . . . . . . . Repair Stations . | . . . . . . . . . Recycling Units 3 | . . . 1 . . . . 2 Scanalyzers . | . . . . . . . . . Garrison Access . | . . . . . . . . . Total Hacks 91 | . 11 1 41 33 . 2 . 3 Successful 74 | . 10 1 28 33 . . . 2 Failed 17 | . 1 . 13 . . 2 . 1 Catastrophic 2 | . . . 2 . . . . . Database Lockouts . | . . . . . . . . . Manual 15 | . 2 . 10 . . . . 3 Terminals 29 | . 11 . 16 . . 2 . . Fabricators . | . . . . . . . . . Repair Stations . | . . . . . . . . . Recycling Units 4 | . . . 1 . . . . 3 Scanalyzers . | . . . . . . . . . Garrison Access . | . . . . . . . . . Terminal Hacks 71 | . 10 1 27 33 . . . . Record 55 | . . . 24 31 . . . . Robot Analysis 2 | . 2 . . . . . . . Prototype ID Bank 4 | . 3 . 1 . . . . . Open Door 1 | . . . . 1 . . . . Emergency Access Points 1 | . 1 . . . . . . . Alert Level 1 | . 1 . . . . . . . Hauler Manifests 1 | . 1 . . . . . . . Zone Layout 4 | . 2 . 2 . . . . . Proto ID Catalog 2 | . . 1 . 1 . . . . Fabricator Hacks . | . . . . . . . . . Repair Station Hacks . | . . . . . . . . . Recycling Unit Hacks . | . . . . . . . . . Scanalyzer . | . . . . . . . . . Garrison Access Hacks . | . . . . . . . . . Unauthorized Hacks 2 | . . . . . . . . 2 Terminals . | . . . . . . . . . Fabricators . | . . . . . . . . . Repair Stations . | . . . . . . . . . Recycling Units 2 | . . . . . . . . 2 Fedlink 2 | . . . . . . . . 2 Scanalyzers . | . . . . . . . . . Garrison Access . | . . . . . . . . . Data Cores Recovered . | . . . . . . . . . Used . | . . . . . . . . . Hacking Detections 9 | . 4 . 3 . . 1 . 1 Full Trace Events . | . . . . . . . . . Feedback Events . | . . . . . . . . . Feedback Blocked . | . . . . . . . . . Robot Schematics Acquired . | . . . . . . . . . Robots Built . | . . . . . . . . . Authchips . | . . . . . . . . . Time . | . . . . . . . . . Total Robot Build Rating . | . . . . . . . . . Part Schematics Acquired . | . . . . . . . . . Parts Built . | . . . . . . . . . Authchips . | . . . . . . . . . Time . | . . . . . . . . . Total Part Build Rating . | . . . . . . . . . Parts Repaired . | . . . . . . . . . Time . | . . . . . . . . . Parts Recycled . | . . . . . . . . . Recycled Matter . | . . . . . . . . . Retrieved Matter . | . . . . . . . . . Retrieved Components . | . . . . . . . . . Parts Scanalyzed . | . . . . . . . . . Part Schematics Acquired . | . . . . . . . . . Parts Damaged . | . . . . . . . . . Bothacking | -11 -10 -10 -8 -8 -6 -5 -5 -5 ------------ Run | Yrd Mat Sub Rec Scr Fac Fac Was Fac Used RIF Installer . | . . . . . . . . . Robots Hacked . | . . . . . . . . . Non-combat . | . . . . . . . . . Combat . | . . . . . . . . . Robot Hacks Applied . | . . . . . . . . . Relay Couplers Released . | . . . . . . . . . Fabnet Peak Effective % . | . . . . . . . . . Robots Rewired 21 | . . . 21 . . . . . Allies Hacked 1 | . . . . . 1 . . . Hacks Repelled . | . . . . . . . . . Allies | -11 -10 -10 -8 -8 -6 -5 -5 -5 -------- Run | Yrd Mat Sub Rec Scr Fac Fac Was Fac Total Allies 22 | . . . 21 . . . 1 . Largest Group 14 | . . . 14 13 12 1 1 . Highest-Rated Group 202 | . . . 202 184 173 16 16 . Highest-Rated Ally 27 | . . . 27 27 27 16 16 . Total Orders 2 | . . . 2 . . . . . DROP 1 | . . . 1 . . . . . COLLECT 1 | . . . 1 . . . . . Ally Attacks 117 | . . . 31 . 75 2 9 . Total Damage 1524 | . . . 438 . 924 17 145 . Kills 5 | . . . 3 . 2 . . . Allies Corrupted . | . . . . . . . . . Allies Melted . | . . . . . . . . . Intel | -11 -10 -10 -8 -8 -6 -5 -5 -5 ------- Run | Yrd Mat Sub Rec Scr Fac Fac Was Fac Active Infowar (turns) 6703 | . 124 1821 743 1923 1033 266 143 650 Sensors 992 | . . . . . . 206 143 643 Terrain 915 | . . . . . . 129 143 643 Structural 6596 | . 124 1821 743 1923 1033 266 143 543 Robot Analysis Total 2 | . 2 . . . . . . . Derelict Logs Recovered 1 | . . 1 . . . . . . Drone Launches . | . . . . . . . . . Drone Recoveries . | . . . . . . . . . Exploration | -11 -10 -10 -8 -8 -6 -5 -5 -5 ------------- Run | Yrd Mat Sub Rec Scr Fac Fac Was Fac Turns Passed 7564 | 72 465 1835 1142 1923 1033 266 143 685 Spaces Moved 4621 | 51 330 1296 574 1122 459 244 128 417 Core 6 | 6 . . . . . . . . Treads . | . . . . . . . . . Legs 4615 | 45 330 1296 574 1122 459 244 128 417 Wheels . | . . . . . . . . . Hover . | . . . . . . . . . Flight . | . . . . . . . . . Fastest Speed 50 | 50 120 120 120 120 90 90 90 90 Average Speed 135 | 115 120 123 136 168 174 90 90 90 Slowest Speed 193 | 150 120 190 190 190 193 90 90 180 Overloaded Moves . | . . . . . . . . . Propulsion Burnouts . | . . . . . . . . . Robots Hopped . | . . . . . . . . . Potential Cave-ins . | . . . . . . . . . Cave-ins Triggered . | . . . . . . . . . Exploration Rate (%) 50 | 4 77 87 97 83 14 7 74 13 Regions Visited 8 Branch Regions 3 Pre-discovered Areas 2 | . . 1 . . . . . 1 Known Exits Taken . | . . . . . . . . . Unknown Exits Taken 6 | 1 1 1 1 1 1 . . . Scrap Searched 18 | . . 8 . 10 . . . . Spaces Dug 3 | . . 2 . . . . . 1 Terrain Destroyed 7 | . . 2 . . 4 . . 1 Melee 3 | . . 2 . . . . . 1 Projectile 4 | . . . . . 4 . . . AOE . | . . . . . . . . . Terrain Rammed . | . . . . . . . . . Walls Destroyed . | . . . . . . . . . Machines Disabled . | . . . . . . . . . Actions | -11 -10 -10 -8 -8 -6 -5 -5 -5 --------- Run | Yrd Mat Sub Rec Scr Fac Fac Was Fac Total 5682 | 64 365 1439 916 1152 638 294 155 659 Wait 553 | . 10 48 161 8 104 24 27 171 Move 4614 | 50 329 1295 573 1121 458 244 127 417 Hop . | . . . . . . . . . Pick Up 67 | 8 7 9 . 15 14 9 1 4 Fast Attach 23 | . 1 4 1 3 7 . . 7 Attach 21 | 6 . 1 . . 8 4 . 2 Detach 1 | . . . . . . 1 . . Swap 18 | . . 9 3 1 3 1 . 1 Drop 49 | . 1 11 2 4 12 10 . 9 Fire 81 | . 17 37 . . 27 . . . Melee 83 | . . 25 9 . . 1 . 48 Ram . | . . . . . . . . . Kick . | . . . . . . . . . Crush . | . . . . . . . . . Escape Stasis 5 | . . . . . 5 . . . Rewire 167 | . . . 167 . . . . . Trap . | . . . . . . . . . Miscellaneous . | . . . . . . . . . Route ------- -11/Scrapyard -10/Materials (discovered 4 exits: [*Mat x3] / *Sub) -10/Subcaves (discovered 3 exits: [*Mat x2] / *Rec) -8/Recycling (discovered 2 exits: [*Fac] / *Scr) -8/Scraptown (discovered 2 exits: [*Fac x2]) -6/Factory -5/Factory -5/Waste -5/Factory (discovered 1 exit: [Ext]) History --------- Turn | Location | Event 2 | -11/Scrapyard | Met Revision 17 12 | -11/Scrapyard | Discovered new exit (range 16) 73 | -11/Scrapyard | Entered Materials 214 | -10/Materials | Discovered new exit (range 16) 302 | -10/Materials | Build established: Mutant 336 | -10/Materials | Discovered new exit (range 7) 474 | -10/Materials | Discovered new exit (range 5) 480 | -10/Materials | Discovered new exit (range 11) 538 | -10/Materials | Entered Subcaves 638 | -10/Subcaves | Discovered new exit (range 6) 685 | -10/Subcaves | Visited 4L-MR0's lab 702 | -10/Subcaves | Found Arachnoskeleton 838 | -10/Subcaves | Discovered new exit (range 15) 1080 | -10/Subcaves | Core integrity fell below 50% 1226 | -10/Subcaves | Learned location of 1 exit from Materials 1624 | -10/Subcaves | Learned location of Zion (-7) 1624 | -10/Subcaves | Met a Zionite searching for "candidates" 2062 | -10/Subcaves | Core integrity fell below 20% 2175 | -10/Subcaves | Ambushed by Subdwellers from Twisted Machinery 2294 | -10/Subcaves | Disturbed a concealed Subdweller 2364 | -10/Subcaves | Discovered new exit (range 8) 2373 | -10/Subcaves | Entered Recycling 3000 | -8/Recycling | Build established: Commander-Mutant 3122 | -8/Recycling | Lost 5 allies 3251 | -8/Recycling | Discovered new exit (range 7) 3448 | -8/Recycling | Scanned before Scraplab entrance 3462 | -8/Recycling | Discovered new exit (range 11) 3466 | -8/Recycling | Entered Scraplab 3515 | -8/Recycling | Entered Scraptown 3515 | -8/Scraptown | Accompanied by 13 allies 3846 | -8/Scraptown | Discovered new exit (range 13) 3897 | -8/Scraptown | Visited Bundlers 4038 | -8/Scraptown | Visited IN-MT5's Study 4064 | -8/Scraptown | Visited Cave Peace 4127 | -8/Scraptown | Visited Cyclists 4201 | -8/Scraptown | Visited Comm Corps 4504 | -8/Scraptown | Visited Shadow of the Wyrm 4535 | -8/Scraptown | Visited Symbiants 4593 | -8/Scraptown | Visited UFD Registry 4593 | -8/Scraptown | Registered with UFD as "Thermowarp" 4673 | -8/Scraptown | Visited Supply Room 4724 | -8/Scraptown | Visited Curators Association 4809 | -8/Scraptown | Visited Sword Containment 4871 | -8/Scraptown | Visited Science Guys 4932 | -8/Scraptown | Visited Science Testing Area 4960 | -8/Scraptown | Visited Supply Room 5010 | -8/Scraptown | Visited Infowarlord's Domain 5025 | -8/Scraptown | Found Exp. Sensor Array 5081 | -8/Scraptown | Visited Observation Area 5144 | -8/Scraptown | Visited Scrapoid Pod Storage 5178 | -8/Scraptown | Visited DA-N13 Charitable Foundation 5186 | -8/Scraptown | Found DCF Scrap (27 items) 5335 | -8/Scraptown | Met Optimus 5335 | -8/Scraptown | Accepted into 0bPrime 5430 | -8/Scraptown | Discovered new exit (range 3) 5438 | -8/Scraptown | Entered Factory 5438 | -6/Factory | Accompanied by 12 allies 5438 | -6/Factory | Evolved 8 slots: Propulsion x2, Utility x6 5875 | -6/Factory | Spotted B-75 Beast 5902 | -6/Factory | Destroyed B-75 Beast 6059 | -6/Factory | Discovered new exit (range 5) 6285 | -6/Factory | Lost 7 allies 6314 | -6/Factory | Attached Arachnoskeleton, gained temporary slots: Propulsion x3 6471 | -6/Factory | Entered another Factory area 6471 | -5/Factory | Accompanied by 1 ally 6471 | -5/Factory | Evolved 2 slots: Power x1, Propulsion x1 6591 | -5/Factory | Build established: Mutant 6737 | -5/Factory | Sucked down chute 6737 | -5/Factory | Entered Waste 6737 | -5/Waste | Met up with 1 ally sucked down the chute earlier 6824 | -5/Waste | Spotted C-40 Crusher 6824 | -5/Waste | Spotted C-40 Crusher 6847 | -5/Waste | Spotted C-40 Crusher 6849 | -5/Waste | Spotted C-40 Crusher 6867 | -5/Waste | Discovered new exit (range 12) 6880 | -5/Waste | Entered Factory 6905 | -5/Factory | Build established: Assassin 7397 | -5/Factory | Loaded intel: 8 recycling unit locations 7491 | -5/Factory | Learned location of Protoforge (-2) 7501 | -5/Factory | Discovered new exit (range 10) 7556 | -5/Factory | Core integrity fell below 50% 7562 | -5/Factory | Core integrity fell below 20% 7565 | -5/Factory | Destroyed by S-27 Virus with Autogun Last Messages --------------- 07548_ K-01 Serf collects debris. 07548_ U-05 Engineer lays Concrete. 07549_ Critical hit (Burn: +37). 07549_ R-10 Processor collects Adv. Heat Sink. 07549_ U-05 Engineer lays Concrete. 07550_ U-05 Engineer builds a Wall. 07550_ U-05 Engineer lays Concrete. 07551_ K-01 Serf collects debris. 07552_ Dropped Imp. Terrain Scanner. 07552_ U-05 Engineer builds a Wall. 07552_ Discarded Arachnoskeleton. 07554_ Structural Scanner destroyed. 07555_ K-01 Serf collects debris. 07557_ U-05 Engineer builds a Wall. 07557_ Exp. Sensor Array destroyed. 07558_ K-01 Serf collects debris. 07562_ U-05 Engineer builds a Wall. 07563_ Slug penetrates G-50 Soldier. 07564_ K-01 Serf collects debris. 07565_ Matter Pump disabled. Map ----- +----------------------------------------------------+ | ####? #????#?# # ??"?? ????????????????????????? | | #?##? ? ? ? #?"??"? ????????????????????????? | | ##### ######## +????"" ??????????????????????? | | #####+######## #?? ""????????????????????? | | # # # ???????????????????? | | # ! # #### ###?????????????????? | | # # # # # ##????????????????? | | / # # ##????????????????? | | # """ """ # # ###?#?????????????? | | # """ """ / # ##???????????????? | | #= """ """ # # #??##????????????? | | # !# ## ###??#???????????? | | + """ """ # ## # ##?#?????????????? | | # """ """ # ## ##????????????????? | | # """ """ # ## #????#?#??????????? | | + # ## !!! #?#?#??????????????? | | ############## ## !!! #???#?##???????????? | | ############## ## ! ! ####?#??#??????????? | | ####??### ## #########??????????? | | ######### ## ! #########??????????? | | ######## ###+########## ##??????????? | | ######## % ##??????????? | | ######## " ##??????????? | | ######## gg ##??????????? | | ##########?## ] ####gs k ????????? | | ###################### s @ ^ ????????? | | ######################ss %"" """ ???????????? | | ### #g """ ""?????????????? | | ### #gg """ """???"????????? | | ### *!=#!g ????????? | | ] ### ==%=# "" """ """ """ "??????????? | | ### =! # "Y""" """ """ ???????????? | | ### # F """ """ """ """????????? | | ### # k" ????????? | | ### # "" ????????? | | ! ### # ????????? | | ######### / ! ????????? | | ######### # #########+#####?????????? | | ######### # #### """ ?? ? ????????? | | #######?###+###### " #?##?"Y"?? ????????????? | | ##??#### ## """T ####?" " ?? ??????????? | | ####?#?# ### ###"""""""?"#?? ?????????????? | | ##?##?## ## #?#### ? ### ?? ??????????????? | | ###?#### ####?##?#? ?#? ? ????????????? | | ##???#?# ###???##?